bitfinex/quotes_SOLUSD_20240914
["timestamp","ask_amount","ask_price","bid_price","bid_amount"]
[1726309860371,7.0216,137.21,137.2,14.26082621]
[1726309860577,7.0216,137.21,137.19,14.26082621]
[1726309862381,7.0216,137.21,137.2,14.26082621]
[1726309862573,7.0216,137.23,137.2,14.26082621]
[1726309862764,7.0216,137.23,137.21,14.26082621]
[1726309862964,7.0216,137.23,137.22,14.26082621]
[1726309867969,7.0216,137.23,137.21,14.26082621]
[1726309877879,7.0216,137.23,137.22,14.26082621]
[1726309878079,7.0216,137.23,137.21,14.26082621]
[1726309880694,7.0216,137.21,137.2,14.26082621]
[1726309882502,7.0216,137.21,137.2,34.26082621]
[1726309889003,7.0216,137.21,137.2,20.0]
[1726309889195,8.4780076,137.21,137.2,20.0]
[1726309889695,8.4780076,137.21,137.18,14.35812621]
[1726309890091,7.0216,137.19,137.18,14.35812621]
[1726309890778,7.0216,137.19,137.18,34.35812621]
[1726309893105,7.0216,137.21,137.18,58.13501021]
[1726309893302,7.0216,137.21,137.2,14.26082621]
[1726309893607,7.0216,137.21,137.19,38.03771021]
[1726309897404,7.0216,137.21,137.19,14.26082621]
[1726309903294,7.0216,137.21,137.18,34.35812621]
[1726309904115,7.0216,137.21,137.18,14.35812621]
[1726309906009,7.0216,137.21,137.19,14.26082621]
[1726309906192,7.0216,137.19,137.18,14.35812621]
[1726309906703,7.0216,137.19,137.18,34.35812621]
[1726309909135,7.0216,137.19,137.18,20.0973]
[1726309909637,7.0216,137.19,137.18,0.0973]
[1726309911836,7.0216,137.19,137.18,14.35812621]
[1726309930933,7.0216,137.19,137.18,0.0973]
[1726309931658,8.4780076,137.19,137.18,0.0973]
[1726309932328,7.0216,137.19,137.18,0.0973]
[1726309956062,8.4780076,137.19,137.18,0.0973]
[1726309957572,53.1353076,137.19,137.18,0.0973]
[1726309963770,29.7789,137.19,137.18,0.0973]
[1726309969088,7.0216,137.19,137.18,0.0973]
[1726309981870,8.4780076,137.19,137.18,0.0973]
[1726309982069,29.7793,137.19,137.18,0.0973]
[1726309982873,31.2357076,137.19,137.18,0.0973]
[1726309983071,51.6993,137.19,137.18,0.0973]
[1726309986390,75.476184,137.19,137.18,0.0973]
[1726309987402,75.601674,137.19,137.18,0.0973]
[1726309990894,83.15760542,137.19,137.18,0.0973]
[1726309994603,59.38072142,137.19,137.18,0.0973]
[1726309995315,59.25523142,137.19,137.18,0.0973]
[1726309998219,14.57753142,137.19,137.18,0.0973]
[1726309998394,7.0216,137.19,137.18,0.0973]
[1726310004298,7.0216,137.19,137.18,14.35812621]
[1726310007707,7.0216,137.19,137.18,0.0973]
[1726310033147,14.53914108,137.19,137.18,0.0973]
[1726310035061,36.45914108,137.19,137.18,0.0973]
[1726310035361,37.91554868,137.19,137.18,0.0973]
[1726310036256,60.34184868,137.19,137.18,0.0973]
[1726310036839,60.46733868,137.19,137.18,0.0973]
[1726310038761,59.01093108,137.19,137.18,0.0973]
[1726310039648,58.88544108,137.19,137.18,0.0973]
[1726310042245,36.96544108,137.19,137.18,0.0973]
[1726310043158,14.53914108,137.19,137.18,0.0973]
[1726310043355,7.0216,137.19,137.18,0.0973]
[1726310083995,7.0216,137.19,137.18,14.35812621]
[1726310084978,7.0216,137.21,137.18,14.35812621]
[1726310085287,7.0216,137.21,137.2,14.26082621]
[1726310088374,7.0216,137.23,137.2,14.26082621]
[1726310088574,7.0216,137.23,137.22,14.26082621]
[1726310092899,7.52948491,137.24,137.22,14.26082621]
[1726310093192,7.52948491,137.24,137.23,14.26082621]
[1726310095194,7.0216,137.25,137.23,14.26082621]
[1726310095401,7.0216,137.25,137.24,14.26082621]
[1726310098375,7.0216,137.27,137.24,14.26082621]
[1726310098574,7.0216,137.27,137.26,14.26082621]
[1726310099098,0.1570919,137.28,137.26,14.26082621]
[1726310099412,0.1570919,137.28,137.27,14.26082621]
[1726310112101,7.0216,137.27,137.24,23.902374]
[1726310112287,7.0216,137.27,137.26,14.26082621]
[1726310112981,7.0216,137.27,137.25,20.0]
[1726310113301,7.0216,137.27,137.25,34.26082621]
[1726310113502,7.0216,137.27,137.25,14.26082621]
[1726310117592,7.0216,137.27,137.26,14.26082621]
[1726310139619,7.0216,137.25,137.2,23.902374]
[1726310139811,7.0216,137.25,137.21,20.0]
[1726310140010,7.0216,137.25,137.24,14.26082621]
[1726310140211,7.0216,137.25,137.24,34.26082621]
[1726310147424,7.0216,137.27,137.24,58.03771021]
[1726310147622,7.0216,137.27,137.26,14.26082621]
[1726310162369,0.1570919,137.28,137.26,14.26082621]
[1726310162658,0.1570919,137.28,137.27,14.26082621]
[1726310166639,7.0216,137.29,137.27,14.26082621]
[1726310166843,15.7670919,137.32,137.28,14.26082621]
[1726310167056,15.7670919,137.32,137.31,14.26082621]
[1726310169057,0.2543919,137.32,137.31,14.26082621]
[1726310176260,0.2543919,137.32,137.31,34.26082621]
[1726310178978,0.2543919,137.32,137.31,58.03771021]
[1726310179651,0.2543919,137.32,137.31,58.16320021]
[1726310187296,16.0630919,137.36,137.32,23.776884]
[1726310187297,0.2543919,137.36,137.32,23.776884]
[1726310187601,0.2543919,137.36,137.35,38.03771021]
[1726310187783,0.2543919,137.36,137.35,58.03771021]
[1726310188298,0.2543919,137.36,137.35,58.16320021]
[1726310190078,0.2543919,137.36,137.35,58.03771021]
[1726310191378,0.2543919,137.36,137.35,34.26082621]
[1726310195985,0.2543919,137.4,137.36,23.776884]
[1726310196179,0.2543919,137.4,137.39,14.26082621]
[1726310220314,0.2543919,137.4,137.39,34.26082621]
[1726310224823,0.2543919,137.4,137.39,58.03771021]
[1726310225421,0.2543919,137.44,137.39,58.03771021]
[1726310225731,0.2543919,137.44,137.43,14.26082621]
[1726310225932,0.2543919,137.44,137.42,14.26082621]
[1726310227929,0.2543919,137.44,137.43,14.26082621]
[1726310233716,0.2543919,137.44,137.4,23.776884]
[1726310234032,0.2543919,137.44,137.39,20.12549]
[1726310234239,0.2543919,137.44,137.4,20.0]
[1726310234419,0.2543919,137.44,137.41,14.26082621]
[1726310235240,0.2543919,137.44,137.42,14.26082621]
[1726310236438,0.2543919,137.44,137.43,14.26082621]
[1726310248848,0.2543919,137.44,137.37,23.902374]
[1726310249234,0.2543919,137.44,137.42,14.26082621]
[1726310259634,1.7107995,137.44,137.37,34.12302435]
[1726310259835,0.2543919,137.44,137.41,14.26082621]
[1726310261345,0.2543919,137.44,137.43,14.26082621]
[1726310262649,0.2543919,137.44,137.42,14.26082621]
[1726310263959,0.2543919,137.44,137.37,34.12302435]
[1726310264139,0.2543919,137.44,137.42,14.26082621]
[1726310270945,0.2543919,137.44,137.43,14.26082621]
[1726310271347,0.2543919,137.44,137.42,14.26082621]
[1726310275662,0.2543919,137.44,137.43,14.26082621]
[1726310280279,0.2543919,137.44,137.37,10.34614035]
[1726310280576,1.4564076,137.43,137.38,20.0]
[1726310280880,6.1138,137.42,137.38,20.0]
[1726310281048,1.4564076,137.41,137.37,14.26082621]
[1726310281859,16.9361076,137.41,137.34,10.22065035]
[1726310282058,15.4797,137.41,137.34,10.22065035]
[1726310282552,15.4797,137.41,137.37,14.26082621]
[1726310282757,15.4797,137.41,137.38,14.26082621]
[1726310283076,1.4564076,137.4,137.34,10.22065035]
[1726310283264,1.4564076,137.39,137.35,14.26082621]
[1726310283464,1.4564076,137.39,137.35,34.26082621]
[1726310283666,15.4797,137.41,137.35,34.26082621]
[1726310284061,15.4797,137.41,137.36,14.26082621]
[1726310285264,15.4797,137.41,137.35,34.26082621]
[1726310286373,15.4797,137.41,137.36,14.26082621]
[1726310288857,1.4564076,137.4,137.35,20.0]
[1726310289055,15.4797,137.41,137.35,34.26082621]
[1726310289459,15.4797,137.41,137.35,14.26082621]
[1726310289856,15.4797,137.41,137.36,20.0]
[1726310290464,16.9361076,137.41,137.36,20.0]
[1726310291169,15.4797,137.41,137.36,20.0]
[1726310291586,15.4797,137.41,137.36,34.26082621]
[1726310291996,15.4797,137.41,137.36,14.26082621]
[1726310292484,15.4797,137.41,137.37,14.26082621]
[1726310296610,15.4797,137.41,137.35,14.26082621]
[1726310296799,15.4797,137.41,137.36,14.26082621]
[1726310296994,15.4797,137.41,137.36,34.26082621]
[1726310297513,15.4797,137.41,137.36,14.26082621]
[1726310298509,6.4797,137.4,137.32,20.0]
[1726310298799,1.4564076,137.39,137.34,14.26082621]
[1726310299110,1.4564076,137.39,137.35,20.0]
[1726310299593,6.4797,137.4,137.35,20.0]
[1726310300501,6.4797,137.4,137.35,34.26082621]
[1726310300987,6.4797,137.4,137.35,14.26082621]
[1726310301994,6.4797,137.4,137.36,14.26082621]
[1726310309507,6.4797,137.4,137.37,14.26082621]
[1726310317335,7.9361076,137.4,137.36,14.26082621]
[1726310317829,6.4797,137.4,137.36,14.26082621]
[1726310337235,6.4797,137.4,137.35,14.26082621]
[1726310337823,6.4797,137.4,137.36,20.0]
[1726310341638,6.4797,137.4,137.36,34.26082621]
[1726310341841,6.4797,137.4,137.37,14.26082621]
[1726310343921,6.4797,137.4,137.38,14.26082621]
[1726310344731,6.4797,137.4,137.39,14.26082621]
[1726310345045,15.4797,137.41,137.39,14.26082621]
[1726310347533,15.4797,137.41,137.4,14.26082621]
[1726310347737,6.5967,137.43,137.4,14.26082621]
[1726310349735,6.5967,137.43,137.41,14.26082621]
[1726310354229,6.5967,137.43,137.4,14.26082621]
[1726310358648,6.5967,137.43,137.41,14.26082621]
[1726310359369,6.5967,137.43,137.4,14.26082621]
[1726310361064,6.5967,137.43,137.39,14.26082621]
[1726310362047,6.5967,137.43,137.4,20.0]
[1726310367663,6.5967,137.43,137.4,34.26082621]
[1726310395273,6.5967,137.43,137.4,14.26082621]
[1726310399471,6.5967,137.43,137.41,14.26082621]
[1726310399794,1.4564076,137.42,137.39,20.12549]
[1726310400165,1.4564076,137.42,137.39,20.0]
[1726310400592,1.4564076,137.42,137.38,20.0]
[1726310402108,6.0981,137.4,137.36,20.0]
[1726310402479,6.0981,137.4,137.34,20.0]
[1726310402677,1.4564076,137.39,137.36,20.0]
[1726310403107,1.4564076,137.39,137.34,14.26082621]
[1726310403692,1.4564076,137.39,137.31,6.23334356]
[1726310403693,15.4384,137.38,137.31,6.23334356]
[1726310403889,6.0981,137.37,137.3,0.2543919]
[1726310404090,6.0981,137.37,137.31,10.22065035]
[1726310404297,6.0981,137.37,137.32,14.26082621]
[1726310405098,6.0981,137.37,137.33,20.0]
[1726310406588,6.0981,137.37,137.33,34.26082621]
[1726310407080,6.0981,137.37,137.33,14.26082621]
[1726310412281,6.0981,137.37,137.34,14.26082621]
[1726310414283,6.0981,137.37,137.33,14.26082621]
[1726310415713,6.0981,137.37,137.32,20.0]
[1726310416007,1.4564076,137.36,137.32,34.26082621]
[1726310416508,6.0981,137.37,137.32,34.26082621]
[1726310417335,16.3995,137.35,137.32,20.0]
[1726310417626,16.3995,137.35,137.31,14.26082621]
[1726310417835,16.3995,137.35,137.32,14.26082621]
[1726310428218,16.3995,137.35,137.32,13.76082621]
[1726310439641,16.3995,137.35,137.34,14.26082621]
[1726310441046,16.3995,137.35,137.33,14.26082621]
[1726310455863,16.3995,137.35,137.31,0.12549]
[1726310456161,16.3995,137.35,137.31,14.38631621]
[1726310456371,16.3995,137.35,137.31,0.12549]
[1726310456664,16.3995,137.35,137.31,14.26082621]
[1726310460766,16.3995,137.35,137.3,0.2543919]
[1726310461071,16.3995,137.35,137.31,14.26082621]
[1726310466862,16.3995,137.35,137.3,0.2543919]
[1726310467177,16.3995,137.35,137.32,14.26082621]
[1726310468771,16.3995,137.35,137.3,0.2543919]
[1726310468974,16.3995,137.35,137.32,14.26082621]
[1726310469848,16.3995,137.35,137.33,14.26082621]
[1726310470765,16.3995,137.35,137.34,14.26082621]
[1726310474690,16.3995,137.35,137.33,14.26082621]
[1726310479992,16.3995,137.35,137.32,14.26082621]
[1726310480184,16.3995,137.35,137.31,14.38631621]
[1726310480486,16.3995,137.35,137.32,20.0]
[1726310492097,16.3995,137.35,137.33,14.26082621]
[1726310492486,16.3995,137.35,137.34,14.26082621]
[1726310497580,16.3995,137.35,137.33,14.26082621]
[1726310498479,16.3995,137.35,137.31,0.12549]
[1726310498786,16.3995,137.35,137.32,14.26082621]
[1726310508014,16.3995,137.35,137.33,14.26082621]
[1726310519699,16.3995,137.35,137.32,14.26082621]
[1726310533543,16.3995,137.35,137.31,14.26082621]
[1726310538227,16.3995,137.35,137.3,0.2543919]
[1726310538428,16.3995,137.35,137.31,14.26082621]
[1726310544469,16.3995,137.35,137.3,0.2543919]
[1726310544470,8.0157076,137.34,137.3,0.2543919]
[1726310544836,8.0157076,137.34,137.3,20.2543919]
[1726310545035,6.5593,137.34,137.3,34.51521811]
[1726310546661,1.4564076,137.33,137.3,34.51521811]
[1726310546840,1.4564076,137.33,137.3,20.2543919]
[1726310547258,6.5593,137.34,137.3,0.2543919]
[1726310547452,1.4564076,137.33,137.3,0.2543919]
[1726310548846,6.5593,137.34,137.3,0.2543919]
[1726310550670,1.4564076,137.33,137.3,0.2543919]
[1726310552243,6.5593,137.34,137.31,14.26082621]
[1726310555682,6.5593,137.34,137.3,14.51521811]
[1726310566064,6.5593,137.34,137.3,0.2543919]
[1726310566575,8.0157076,137.34,137.3,0.2543919]
[1726310567870,15.2881,137.33,137.3,0.2543919]
[1726310568559,1.4564076,137.32,137.3,0.2543919]
[1726310569686,16.7445076,137.33,137.3,0.2543919]
[1726310573481,1.4564076,137.32,137.3,0.2543919]
[1726310574869,6.519,137.31,137.3,0.2543919]
[1726310575073,22.135,137.31,137.3,0.2543919]
[1726310582281,22.135,137.3,137.26,20.2543919]
[1726310582702,22.135,137.3,137.26,0.2543919]
[1726310588593,21.89,137.29,137.26,0.2543919]
[1726310588914,22.135,137.3,137.26,0.2543919]
[1726310589687,1.4564076,137.29,137.26,0.2543919]
[1726310590111,22.135,137.3,137.26,0.2543919]
[1726310591715,1.4564076,137.29,137.26,0.2543919]
[1726310592018,22.135,137.3,137.26,0.2543919]
[1726310593098,1.4564076,137.29,137.26,0.2543919]
[1726310594107,22.135,137.3,137.26,0.2543919]
[1726310595503,22.135,137.3,137.24,14.01521811]
[1726310595794,22.135,137.3,137.23,14.26082621]
[1726310596012,22.135,137.3,137.25,14.26082621]
[1726310600927,22.135,137.3,137.24,38.03771021]
[1726310602528,22.135,137.3,137.24,14.26082621]
[1726310602736,22.135,137.3,137.23,14.38631621]
[1726310606902,22.135,137.3,137.24,23.776884]
[1726310607113,22.135,137.3,137.25,14.26082621]
[1726310608434,22.135,137.3,137.25,14.38631621]
[1726310617136,22.135,137.3,137.25,0.12549]
[1726310617823,22.135,137.3,137.23,14.26082621]
[1726310622522,22.1577,137.29,137.22,14.64070811]
[1726310622717,22.1577,137.29,137.22,0.3798819]
[1726310622918,1.4564076,137.28,137.22,24.1567659]
[1726310623140,23.6141076,137.29,137.23,20.12549]
[1726310623343,1.4564076,137.28,137.23,20.12549]
[1726310623844,1.4564076,137.28,137.23,20.0]
[1726310624918,22.1577,137.29,137.23,20.0]
[1726310625938,22.1577,137.29,137.23,34.26082621]
[1726310626139,22.1577,137.29,137.23,20.0]
[1726310626348,22.1577,137.29,137.24,14.26082621]
[1726310629423,22.1577,137.29,137.24,15.71782243]
[1726310630041,22.1577,137.29,137.24,14.26082621]
[1726310632855,22.1577,137.29,137.23,34.26082621]
[1726310634637,22.1577,137.29,137.23,20.0]
[1726310634836,23.5108076,137.28,137.23,20.0]
[1726310635851,22.0544,137.28,137.23,20.0]
[1726310636749,1.4564076,137.27,137.23,20.0]
[1726310637357,22.0544,137.28,137.22,34.51521811]
[1726310637830,22.0544,137.28,137.22,14.51521811]
[1726310638035,15.6263,137.27,137.22,0.2543919]
[1726310638237,1.4564076,137.26,137.22,0.2543919]
[1726310638439,15.6263,137.27,137.23,20.0]
[1726310638734,15.6263,137.27,137.23,14.26082621]
[1726310643140,15.6263,137.27,137.22,0.2543919]
[1726310643354,15.6263,137.27,137.22,24.0312759]
[1726310646638,15.1744,137.25,137.22,0.2543919]
[1726310654746,15.1744,137.25,137.23,14.26082621]
[1726310655642,15.1744,137.25,137.24,14.26082621]
[1726310658558,6.2905,137.26,137.24,14.26082621]
[1726310659375,15.2353,137.28,137.25,38.03771021]
[1726310659961,15.2353,137.28,137.25,38.16320021]
[1726310660870,15.2353,137.28,137.25,38.03771021]
[1726310666575,15.2353,137.28,137.24,14.26082621]
[1726310672473,15.2353,137.28,137.25,14.26082621]
[1726310677157,15.2353,137.28,137.26,14.26082621]
[1726310682563,15.2353,137.28,137.27,14.26082621]
[1726310682886,6.661,137.29,137.27,14.26082621]
[1726310683091,15.8308,137.31,137.27,14.26082621]
[1726310683390,15.8308,137.31,137.23,0.12549]
[1726310683391,15.8308,137.31,137.29,14.26082621]
[1726310690576,15.8308,137.31,137.28,14.26082621]
[1726310692583,6.4627,137.3,137.25,0.12549]
[1726310692777,7.9191076,137.3,137.25,0.12549]
[1726310692976,7.9191076,137.3,137.25,20.12549]
[1726310693294,7.9191076,137.3,137.25,20.0]
[1726310694591,7.9191076,137.3,137.25,34.26082621]
[1726310694977,7.9191076,137.3,137.24,0.12549]
[1726310695293,6.4627,137.3,137.24,14.38631621]
[1726310695503,6.4627,137.3,137.25,34.26082621]
[1726310695999,7.9191076,137.3,137.25,34.26082621]
[1726310696292,1.4564076,137.29,137.25,34.26082621]
[1726310696505,1.4564076,137.29,137.25,20.0]
[1726310696670,15.8344,137.28,137.25,20.0]
[1726310696875,15.8344,137.28,137.24,14.38631621]
[1726310697602,15.8344,137.28,137.25,14.26082621]
[1726310697983,15.8344,137.28,137.26,14.26082621]
[1726310699094,15.8344,137.28,137.27,14.26082621]
[1726310701204,15.8344,137.28,137.26,14.26082621]
[1726310701381,15.8344,137.28,137.25,14.26082621]
[1726310702708,15.8344,137.28,137.24,14.26082621]
[1726310703709,15.8344,137.28,137.25,14.26082621]
[1726310708023,15.8344,137.28,137.24,14.26082621]
[1726310709117,15.8344,137.28,137.25,14.26082621]
[1726310712394,15.8344,137.28,137.24,14.26082621]
[1726310713200,6.1161,137.27,137.24,14.26082621]
[1726310713387,6.1161,137.27,137.23,14.38631621]
[1726310713907,6.1161,137.27,137.23,14.26082621]
[1726310719508,7.5725076,137.27,137.23,14.26082621]
[1726310719708,6.1161,137.27,137.23,14.26082621]
[1726310722320,6.1161,137.27,137.22,0.2543919]
[1726310722615,7.5725076,137.27,137.22,14.51521811]
[1726310722821,7.5725076,137.27,137.22,34.51521811]
[1726310723624,6.1161,137.27,137.22,34.51521811]
[1726310725229,7.5725076,137.27,137.22,20.2543919]
[1726310725427,6.3013,137.25,137.22,20.2543919]
[1726310725612,1.4564076,137.24,137.22,20.2543919]
[1726310725809,15.5441,137.24,137.22,0.2543919]
[1726310742524,1.4564076,137.23,137.22,0.2543919]
[1726310743046,15.5441,137.24,137.22,0.2543919]
[1726310744239,15.5441,137.24,137.22,14.51521811]
[1726310744446,6.3013,137.25,137.23,14.26082621]
[1726310746452,6.3013,137.25,137.22,0.2543919]
[1726310747759,1.4564076,137.24,137.22,0.2543919]
[1726310747942,6.3013,137.25,137.22,0.2543919]
[1726310750248,1.4564076,137.24,137.22,0.2543919]
[1726310750550,6.3013,137.25,137.22,0.2543919]
[1726310752052,6.3013,137.25,137.22,14.51521811]
[1726310752350,6.3013,137.25,137.23,14.26082621]
[1726310752554,15.8451,137.27,137.23,14.26082621]
[1726310753331,1.4564076,137.26,137.22,14.51521811]
[1726310753542,15.8451,137.27,137.22,14.51521811]
[1726310753933,15.8451,137.27,137.22,0.2543919]
[1726310754433,15.8451,137.27,137.22,14.51521811]
[1726310755956,13.8451,137.27,137.22,14.51521811]
[1726310758758,13.8451,137.27,137.22,0.2543919]
[1726310759451,13.8451,137.27,137.22,14.51521811]
[1726310760333,13.8451,137.27,137.22,0.2543919]
[1726310760539,13.8451,137.27,137.22,14.51521811]
[1726310760749,13.8451,137.27,137.22,0.2543919]
[1726310761063,13.8451,137.27,137.22,14.51521811]
[1726310762368,13.8451,137.27,137.24,14.26082621]
[1726310762569,15.0532,137.3,137.26,14.26082621]
[1726310762739,15.0532,137.3,137.27,14.26082621]
[1726310763046,6.0155,137.32,137.28,14.26082621]
[1726310763246,6.0155,137.32,137.29,14.26082621]
[1726310763762,6.0155,137.32,137.3,14.26082621]
[1726310764066,6.0155,137.32,137.29,14.26082621]
[1726310765667,6.0155,137.32,137.28,14.26082621]
[1726310767345,1.4564076,137.31,137.28,14.26082621]
[1726310770463,6.0155,137.32,137.28,14.26082621]
[1726310770647,6.0155,137.32,137.29,14.26082621]
[1726310773153,1.4564076,137.31,137.28,14.26082621]
[1726310773667,6.0155,137.32,137.28,14.26082621]
[1726310776373,7.4719076,137.32,137.27,14.26082621]
[1726310777356,6.0155,137.32,137.23,0.12549]
[1726310777558,6.0155,137.32,137.27,14.26082621]
[1726310779758,1.4564076,137.31,137.27,14.26082621]
[1726310779961,6.0155,137.32,137.26,14.26082621]
[1726310780371,15.9845,137.3,137.25,14.26082621]
[1726310781080,15.9845,137.3,137.26,14.26082621]
[1726310781258,15.9845,137.3,137.27,14.26082621]
[1726310781460,15.9845,137.3,137.28,14.26082621]
[1726310785489,15.9845,137.3,137.26,14.26082621]
[1726310787977,15.9845,137.3,137.24,14.26082621]
[1726310789997,15.9845,137.3,137.25,14.26082621]
[1726310794287,1.4564076,137.29,137.25,14.26082621]
[1726310794486,15.9845,137.3,137.25,14.26082621]
[1726310795697,6.2618,137.28,137.24,14.26082621]
[1726310795930,1.4564076,137.27,137.24,14.26082621]
[1726310798189,6.2618,137.28,137.24,14.26082621]
[1726310798582,6.2618,137.28,137.22,0.2543919]
[1726310798783,6.2618,137.28,137.24,14.26082621]
[1726310802303,6.2618,137.28,137.25,14.26082621]
[1726310813725,6.2618,137.28,137.26,14.26082621]
[1726310813911,6.2618,137.28,137.27,14.26082621]
[1726310817242,6.2618,137.28,137.26,14.26082621]
[1726310819422,6.2618,137.28,137.27,14.26082621]
[1726310821433,6.2618,137.28,137.25,14.26082621]
[1726310821642,6.2618,137.28,137.24,14.26082621]
[1726310823038,6.2618,137.28,137.23,0.12549]
[1726310823251,6.2618,137.28,137.22,0.2543919]
[1726310823545,6.2618,137.28,137.24,14.26082621]
[1726310823748,6.2618,137.28,137.22,20.2543919]
[1726310823952,6.2618,137.28,137.24,14.26082621]
[1726310824122,6.2618,137.28,137.22,0.2543919]
[1726310824322,6.2618,137.28,137.25,14.26082621]
[1726310824843,6.2618,137.28,137.22,20.2543919]
[1726310825033,6.2618,137.28,137.24,14.26082621]
[1726310826329,7.7182076,137.28,137.23,14.26082621]
[1726310826522,6.2618,137.28,137.23,14.26082621]
[1726310826718,16.0795,137.27,137.23,14.26082621]
[1726310827646,16.0795,137.27,137.22,0.2543919]
[1726310827855,17.5359076,137.27,137.22,0.2543919]
[1726310828043,16.0795,137.27,137.22,0.2543919]
[1726310828424,16.0795,137.27,137.22,14.51521811]
[1726310830430,16.0795,137.27,137.23,14.26082621]
[1726310830631,16.0795,137.27,137.24,14.26082621]
[1726310831052,16.0795,137.27,137.25,14.26082621]
[1726310831434,16.0795,137.27,137.26,14.26082621]
[1726310832754,6.2618,137.28,137.26,14.26082621]
[1726310833222,16.3856,137.31,137.26,14.26082621]
[1726310833422,16.3856,137.31,137.22,24.0312759]
[1726310833653,16.3856,137.31,137.27,14.26082621]
[1726310833832,16.3856,137.31,137.28,14.26082621]
[1726310836059,16.3856,137.31,137.27,14.26082621]
[1726310836229,16.3856,137.31,137.26,14.26082621]
[1726310840461,1.4564076,137.3,137.26,14.26082621]
[1726310842455,1.4564076,137.3,137.24,14.26082621]
[1726310842835,16.3856,137.31,137.24,14.26082621]
[1726310843160,17.8420076,137.31,137.24,14.26082621]
[1726310843465,6.0215,137.3,137.24,14.26082621]
[1726310843641,1.4564076,137.29,137.23,14.38631621]
[1726310845178,1.4564076,137.29,137.23,14.26082621]
[1726310845482,15.8561,137.28,137.23,14.26082621]
[1726310846780,1.4564076,137.27,137.23,14.26082621]
[1726310847377,6.0071,137.26,137.22,0.2543919]
[1726310847774,6.0071,137.26,137.22,14.51521811]
[1726310849567,6.0071,137.26,137.22,0.2543919]
[1726310853100,6.0071,137.26,137.22,14.51521811]
[1726310856007,6.0071,137.26,137.22,0.2543919]
[1726310857390,15.8052,137.25,137.22,0.2543919]
[1726310860697,1.4564076,137.24,137.22,0.2543919]
[1726310860893,21.8893,137.23,137.22,0.2543919]
[1726310862682,23.3457076,137.23,137.22,0.2543919]
[1726310863705,21.8893,137.23,137.22,0.2543919]
[1726310866707,23.3457076,137.23,137.22,0.2543919]
[1726310867003,21.8893,137.23,137.22,0.2543919]
[1726310867679,21.8893,137.23,137.18,0.2543919]
[1726310867680,23.3457076,137.23,137.18,0.2543919]
[1726310867885,21.8893,137.23,137.18,0.2543919]
[1726310870183,23.3457076,137.23,137.18,0.2543919]
[1726310870792,21.8893,137.23,137.18,0.2543919]
[1726310873212,21.8893,137.23,137.18,14.51521811]
[1726310873385,21.8893,137.23,137.18,0.2543919]
[1726310874382,21.8893,137.23,137.18,14.51521811]
[1726310881311,21.8893,137.23,137.18,0.2543919]
[1726310883395,23.3457076,137.23,137.18,0.2543919]
[1726310883803,21.8893,137.23,137.18,0.2543919]
[1726310884003,1.4564076,137.22,137.18,0.2543919]
[1726310884303,21.8893,137.23,137.18,0.2543919]
[1726310884516,23.3457076,137.23,137.18,0.2543919]
[1726310884918,1.4564076,137.22,137.18,0.2543919]
[1726310885298,21.8893,137.23,137.18,0.2543919]
[1726310885620,23.3457076,137.23,137.18,0.2543919]
[1726310885818,21.8893,137.23,137.18,0.2543919]
[1726310886034,23.3457076,137.23,137.18,0.2543919]
[1726310887017,9.05573601,137.22,137.18,0.2543919]
[1726310887412,7.59932841,137.22,137.18,0.2543919]
[1726310887603,1.4564076,137.21,137.18,0.2543919]
[1726310887806,7.59932841,137.22,137.18,0.2543919]
[1726310893425,1.4564076,137.21,137.18,0.2543919]
[1726310894206,7.59932841,137.22,137.18,0.2543919]
[1726310900640,21.8893,137.23,137.18,0.2543919]
[1726310901736,23.3457076,137.23,137.18,0.2543919]
[1726310901937,21.8893,137.23,137.18,0.2543919]
[1726310902114,23.3457076,137.23,137.18,0.2543919]
[1726310906619,21.8893,137.23,137.18,0.2543919]
[1726310907521,21.8893,137.23,137.18,14.51521811]
[1726310907723,21.8893,137.23,137.19,14.26082621]
[1726310908319,1.4564076,137.22,137.18,0.2543919]
[1726310908627,21.8893,137.23,137.18,38.29210211]
[1726310909121,21.8893,137.23,137.19,14.26082621]
[1726310910136,21.8893,137.23,137.18,38.29210211]
[1726310915127,21.8893,137.23,137.19,14.26082621]
[1726310918652,21.8893,137.23,137.2,14.26082621]
[1726310923921,21.8893,137.23,137.19,14.26082621]
[1726310926661,21.8893,137.23,137.18,24.0312759]